[Event "44th Chess Olympiad Open 2022"]
[Site "Chennai"]
[Date "2022.08.02"]
[Round "5.46"]
[White "Jimma, Desalegn Fekadu"]
[Black "Msellek, Ilyass"]
[Result "1/2-1/2"]
[WhiteElo "2112"]
[BlackElo "2398"]
[Annotator "RC"]
[PlyCount "111"]
[EventDate "2022.??.??"]
[TimeControl "60"]

1. d4 {[%emt 0:00:03]} d5 {[%emt 0:00:12]} 2. c4 {[%emt 0:00:07]} e6 {[%emt 0:
00:00]} 3. Nf3 {[%emt 0:00:33]} a6 {[%emt 0:01:55]} 4. e3 {[%emt 0:01:24]} Nf6
{[%emt 0:00:19]} 5. Nc3 {[%emt 0:00:07]} Be7 {[%emt 0:02:41]} 6. Bd3 {[%emt 0:
00:00]} dxc4 {[%emt 0:00:15]} 7. Bxc4 {[%emt 0:00:09]} b5 {[%emt 0:00:17]} 8.
Be2 {[%emt 0:00:17]} Bb7 {[%emt 0:01:00]} 9. O-O {[%emt 0:00:46]} Nbd7 {
[%emt 0:01:40]} 10. a3 {[%emt 0:00:23]} c5 {[%emt 0:00:28]} 11. dxc5 {[%emt 0:
00:00]} Bxc5 {[%emt 0:02:04]} 12. b4 {[%emt 0:00:23]} Be7 {[%emt 0:00:27]} 13.
Bb2 {[%emt 0:00:16]} O-O {[%emt 0:00:30]} 14. Qb3 {[%emt 0:01:01]} Qb6 {
[%emt 0:01:55]} 15. Rfd1 {[%emt 0:00:33]} Rac8 {[%emt 0:17:09]} 16. Rac1 {
[%emt 0:04:47]} h6 {[%emt 0:02:59]} 17. h3 {[%emt 0:05:38]} Bd6 {[%emt 0:05:22]
} 18. Nd4 {[%emt 0:08:31]} Nd5 {[%emt 0:15:58]} 19. Ne4 {[%emt 0:14:45]} Be5 {
[%emt 0:09:20]} 20. Nc5 {[%emt 0:16:48]} Nxc5 {[%emt 0:23:26]} 21. bxc5 {
[%emt 0:00:07]} Qa5 {[%emt 0:00:47]} 22. Nc6 {[%emt 0:09:24]} Bxc6 {[%emt 0:00:
00]} 23. Bxe5 {[%emt 0:00:09]} Ne7 {[%emt 0:04:29]} 24. Qc3 {[%emt 0:01:44]}
Qxc3 {[%emt 0:00:28]} 25. Bxc3 {[%emt 0:00:52]} Rfd8 {[%emt 0:01:28]} 26. Ba5 {
[%emt 0:01:27]} Rxd1+ {[%emt 0:00:16]} 27. Bxd1 {[%emt 0:00:46]} f6 {[%emt 0:
00:00]} 28. f3 {[%emt 0:01:49]} Bd5 {[%emt 0:00:44]} 29. e4 {[%emt 0:01:01]}
Bc4 {[%emt 0:00:01]} 30. Bb6 {[%emt 0:11:56]} Nc6 {[%emt 0:00:07]} 31. Kf2 {
[%emt 0:00:31]} Nd4 {[%emt 0:00:11]} 32. Ke3 {[%emt 0:01:17]} Nc6 {[%emt 0:00:
00]} 33. f4 {[%emt 0:00:58]} Kf7 {[%emt 0:00:01]} 34. Bf3 {[%emt 0:00:27]} e5 {
[%emt 0:00:37]} 35. Rd1 {[%emt 0:00:14]} exf4+ {[%emt 0:03:19]} 36. Kxf4 {
[%emt 0:00:09]} Be6 {[%emt 0:02:37]} 37. Rd6 {[%emt 0:00:34]} Ne5 {[%emt 0:00:
00]} 38. Be2 {[%emt 0:01:51]} Bc4 {[%emt 0:01:22]} 39. Bg4 {[%emt 0:00:20]}
Nxg4 {[%emt 0:00:27]} 40. Kxg4 {[%emt 0:01:05]} Be6+ {[%emt 0:00:14]} 41. Kf4 {
[%emt 0:30:06]} a5 {[%emt 0:08:11]} 42. c6 {[%emt 0:00:00]} b4 {[%emt 0:01:43]}
43. axb4 {[%emt 0:03:04]} axb4 {[%emt 0:01:53]} 44. c7 {[%emt 0:00:00]} b3 {
[%emt 0:00:39]} 45. Rd2 {[%emt 0:00:00]} Ra8 {[%emt 0:00:45]} 46. Rb2 {[%emt 0:
00:00]} Ke7 {[%emt 0:03:48]} 47. Rb1 {[%emt 0:00:00]} Kd7 {[%emt 0:02:14]} 48.
Rc1 {[%emt 0:00:00]} Kc8 {[%emt 0:02:12]} 49. Ke3 {[%emt 0:00:00]} Kb7 {
[%emt 0:00:33]} 50. Bc5 {[%emt 0:00:00]} Ra2 {[%emt 0:02:18]} 51. Bd6 {[%emt 0:
00:00]} Ra6 {[%emt 0:07:37]} 52. e5 {[%emt 0:05:32]} Kc8 {[%emt 0:00:08]} 53.
g4 {[%emt 0:01:57]} Bg8 {[%emt 0:00:58]} 54. Kd2 {[%emt 0:00:28]} Bh7 {[%emt 0:
00:00]} 55. Kc3 {[%emt 0:01:05]} Rc6+ {[%emt 0:01:43]} 56. Kb2 {[%emt 0:00:07]}
1/2-1/2

[Event "44th Chess Olympiad Open 2022"]
[Site "Chennai"]
[Date "2022.08.02"]
[Round "5.46"]
[White "Zrikem, Nassim"]
[Black "Tsige, Addisalem Temesgen"]
[Result "1-0"]
[WhiteElo "2075"]
[BlackElo "2072"]
[Annotator "NA RC"]
[PlyCount "65"]
[EventDate "2022.??.??"]
[TimeControl "60"]

1. d4 {[%emt 0:00:26]} Nf6 {[%emt 0:01:49]} 2. Nf3 {[%emt 0:00:11]} g6 {
[%emt 0:01:07]} 3. Bg5 {[%emt 0:00:37]} Bg7 {[%emt 0:00:22]} 4. Nbd2 {[%emt 0:
00:00]} d6 {[%emt 0:01:36]} 5. e4 {[%emt 0:00:43]} Nbd7 {[%emt 0:01:23]} 6. c3
{[%emt 0:01:06]} O-O {[%emt 0:00:21]} 7. Bc4 {[%emt 0:01:10]} h6 {[%emt 0:00:
00]} 8. Bh4 {[%emt 0:03:10]} Nb6 {[%emt 0:05:20]} 9. Bb3 {[%emt 0:03:57]} g5 {
[%emt 0:02:50]} 10. Bg3 {[%emt 0:05:28]} Bg4 {[%emt 0:02:36]} 11. h4 {[%emt 0:
00:00]} Nh5 {[%emt 0:02:26]} 12. hxg5 {[%emt 0:03:07]} Nxg3 {[%emt 0:00:19]}
13. fxg3 {[%emt 0:01:13]} hxg5 {[%emt 0:03:16]} 14. e5 {[%emt 0:06:51]} e6 {
[%emt 0:10:20]} 15. Qb1 {[%emt 0:05:52]} Bf5 {[%emt 0:05:29]} 16. Bc2 {[%emt 0:
00:00]} Qd7 {[%emt 0:05:56]} 17. g4 {[%emt 0:18:25]} Bxc2 {[%emt 0:00:57]} 18.
Qxc2 {[%emt 0:02:19]} f5 {[%emt 0:00:26]} 19. exf6 {[%emt 0:07:30]} Bxf6 {
[%emt 0:00:17]} 20. Rh6 {[%emt 0:00:41]} Nd5 {[%emt 0:04:43]} 21. Kf2 {[%emt 0:
00:00]} Rf7 {[%emt 0:18:16]} 22. Rah1 {[%emt 0:00:37]} Re8 {[%emt 0:00:51]} 23.
Qg6+ {[%emt 0:10:37]} Kf8 {[%emt 0:01:42]} 24. Ne4 {[%emt 0:01:46]} Qd8 {
[%emt 0:10:08]} 25. Rh7 {[%emt 0:03:26]} Qd7 {[%emt 0:04:48]} 26. Nxf6 {
[%emt 0:01:19]} Nxf6 {[%emt 0:02:13]} 27. Qh6+ {[%emt 0:01:53]} Ke7 {[%emt 0:
00:00]} 28. Rxf7+ {[%emt 0:00:13]} Kxf7 {[%emt 0:01:03]} 29. Nxg5+ {[%emt 0:00:
00]} Ke7 {[%emt 0:00:11]} 30. Qg7+ {[%emt 0:00:05]} Kd8 {[%emt 0:00:45]} 31.
Qxf6+ {[%emt 0:00:05]} Kc8 {[%emt 0:00:37]} 32. Rh8 {[%emt 0:00:08]} Kb8 {
[%emt 0:03:15]} 33. Qf7 {[%emt 0:00:14]} 1-0

[Event "44th Chess Olympiad Open 2022"]
[Site "Chennai"]
[Date "2022.08.02"]
[Round "5.46"]
[White "Gole, Habtamu Ashenafi"]
[Black "Choukri, Adel"]
[Result "0-1"]
[WhiteElo "2044"]
[BlackElo "2306"]
[Annotator "RC"]
[PlyCount "90"]
[EventDate "2022.??.??"]
[TimeControl "60"]

1. Nf3 {[%emt 0:00:06]} d5 {[%emt 0:00:21]} 2. d4 {[%emt 0:00:27]} e6 {[%emt 0:
00:00]} 3. Bf4 {[%emt 0:00:44]} c5 {[%emt 0:01:16]} 4. e3 {[%emt 0:00:27]} Nc6
{[%emt 0:00:18]} 5. c3 {[%emt 0:00:56]} Nf6 {[%emt 0:00:25]} 6. Nbd2 {[%emt 0:
00:00]} h6 {[%emt 0:00:22]} 7. h3 {[%emt 0:00:52]} Bd6 {[%emt 0:00:06]} 8. Ne5
{[%emt 0:01:03]} Bxe5 {[%emt 0:00:20]} 9. dxe5 {[%emt 0:00:19]} Nd7 {[%emt 0:
00:00]} 10. Bb5 {[%emt 0:04:57]} Qb6 {[%emt 0:02:05]} 11. Bxc6 {[%emt 0:03:06]}
bxc6 {[%emt 0:00:23]} 12. b3 {[%emt 0:03:07]} Ba6 {[%emt 0:03:46]} 13. Qc2 {
[%emt 0:03:17]} Qc7 {[%emt 0:06:22]} 14. Nf3 {[%emt 0:05:21]} Qa5 {[%emt 0:00:
00]} 15. h4 {[%emt 0:02:59]} O-O-O {[%emt 0:04:18]} 16. h5 {[%emt 0:05:01]} Qa3
{[%emt 0:02:14]} 17. Rh4 {[%emt 0:00:51]} Bb5 {[%emt 0:06:53]} 18. Bg3 {
[%emt 0:01:43]} c4 {[%emt 0:01:52]} 19. b4 {[%emt 0:04:01]} a5 {[%emt 0:00:57]}
20. Kf1 {[%emt 0:03:20]} axb4 {[%emt 0:01:59]} 21. cxb4 {[%emt 0:00:25]} Qxb4 {
[%emt 0:05:03]} 22. a4 {[%emt 0:01:02]} Qa5 {[%emt 0:05:34]} 23. Qa2 {[%emt 0:
00:00]} Ba6 {[%emt 0:01:10]} 24. Nd4 {[%emt 0:01:37]} Kc7 {[%emt 0:09:17]} 25.
Rf4 {[%emt 0:05:38]} c5 {[%emt 0:01:06]} 26. Nc2 {[%emt 0:09:26]} Rb8 {[%emt 0:
00:00]} 27. Kg1 {[%emt 0:07:54]} Rhf8 {[%emt 0:04:02]} 28. f3 {[%emt 0:05:54]}
Qc3 {[%emt 0:04:43]} 29. Be1 {[%emt 0:03:40]} Qb3 {[%emt 0:02:58]} 30. Rg4 {
[%emt 0:02:37]} Rg8 {[%emt 0:01:35]} 31. f4 {[%emt 0:03:57]} g6 {[%emt 0:03:26]
} 32. Rg3 {[%emt 0:03:39]} gxh5 {[%emt 0:00:29]} 33. Ba5+ {[%emt 0:02:00]} Kc6
{[%emt 0:02:03]} 34. Rh3 {[%emt 0:03:20]} Qxa2 {[%emt 0:01:23]} 35. Rxa2 {
[%emt 0:00:02]} Rb1+ {[%emt 0:00:09]} 36. Kh2 {[%emt 0:02:18]} Rgb8 {[%emt 0:
00:00]} 37. Bc3 {[%emt 0:02:06]} R1b3 {[%emt 0:01:34]} 38. Ba1 {[%emt 0:00:53]}
c3 {[%emt 0:00:47]} 39. Kg3 {[%emt 0:06:57]} Rb2 {[%emt 0:03:02]} 40. Bxb2 {
[%emt 0:00:48]} cxb2 {[%emt 0:00:09]} 41. Na3 {[%emt 0:30:16]} Bc4 {[%emt 0:00:
00]} 42. Rxb2 {[%emt 0:00:00]} Rb7 {[%emt 0:00:06]} 43. Rb4 Rxb4 {[%emt 0:00:
00]} 44. Nxc4 {[%emt 0:00:00]} Rb2 {[%emt 0:00:00]} 45. e4 {[%emt 0:00:00]}
dxc4 {[%emt 0:00:00]} 0-1

[Event "44th Chess Olympiad Open 2022"]
[Site "Chennai"]
[Date "2022.08.02"]
[Round "5.47"]
[White "Arias Santana, Mauricio"]
[Black "Gerena Rivas, Eliam"]
[Result "1/2-1/2"]
[WhiteElo "2318"]
[BlackElo "2102"]
[Annotator "RC"]
[PlyCount "132"]
[EventDate "2022.??.??"]
[TimeControl "60"]

1. d4 {[%emt 0:00:03]} Nf6 {[%emt 0:00:18]} 2. c4 {[%emt 0:00:14]} g6 {[%emt 0:
00:00]} 3. Nc3 {[%emt 0:00:02]} Bg7 {[%emt 0:00:29]} 4. e4 {[%emt 0:00:02]} d6
{[%emt 0:00:22]} 5. Nf3 {[%emt 0:00:02]} O-O {[%emt 0:00:29]} 6. Be2 {[%emt 0:
00:00]} e5 {[%emt 0:00:42]} 7. O-O {[%emt 0:00:03]} Na6 {[%emt 0:01:00]} 8. Be3
{[%emt 0:00:21]} Ng4 {[%emt 0:01:15]} 9. Bg5 {[%emt 0:00:02]} Qe8 {[%emt 0:00:
00]} 10. d5 {[%emt 0:02:50]} f5 {[%emt 0:04:37]} 11. h3 {[%emt 0:12:37]} Nf6 {
[%emt 0:03:08]} 12. exf5 {[%emt 0:05:00]} gxf5 {[%emt 0:01:49]} 13. Nd2 {
[%emt 0:02:55]} Qg6 {[%emt 0:12:58]} 14. f4 {[%emt 0:00:54]} Bh6 {[%emt 0:00:
00]} 15. Bxh6 {[%emt 0:05:30]} Qxh6 {[%emt 0:00:07]} 16. Nb3 {[%emt 0:31:35]}
Bd7 {[%emt 0:10:42]} 17. c5 {[%emt 0:01:53]} Nxc5 {[%emt 0:03:23]} 18. Nxc5 {
[%emt 0:00:37]} dxc5 {[%emt 0:00:09]} 19. d6 {[%emt 0:00:21]} c6 {[%emt 0:00:
00]} 20. Na4 {[%emt 0:13:57]} b6 {[%emt 0:02:30]} 21. Qb3+ {[%emt 0:05:53]} Kh8
{[%emt 0:04:14]} 22. fxe5 {[%emt 0:00:02]} Ne4 {[%emt 0:01:09]} 23. Bf3 {
[%emt 0:04:44]} Be6 {[%emt 0:16:51]} 24. Qc2 {[%emt 0:00:10]} Qe3+ {[%emt 0:00:
00]} 25. Kh2 {[%emt 0:00:31]} Qf4+ {[%emt 0:00:39]} 26. Kg1 {[%emt 0:00:01]}
Qxe5 {[%emt 0:02:03]} 27. Bxe4 {[%emt 0:00:11]} fxe4 {[%emt 0:02:46]} 28. Qc3 {
[%emt 0:00:13]} Qd4+ {[%emt 0:08:42]} 29. Kh1 {[%emt 0:01:52]} Bc4 {[%emt 0:00:
00]} 30. Rfe1 {[%emt 0:11:19]} Bd3 {[%emt 0:01:27]} 31. a3 {[%emt 0:00:31]}
Rfe8 {[%emt 0:06:17]} 32. Re3 {[%emt 0:00:53]} Rad8 {[%emt 0:06:56]} 33. Rae1 {
[%emt 0:00:38]} Qxc3 {[%emt 0:02:08]} 34. Nxc3 {[%emt 0:00:01]} Rxd6 {[%emt 0:
00:00]} 35. Nxe4 {[%emt 0:00:04]} Rd4 {[%emt 0:01:06]} 36. Nf2 {[%emt 0:00:31]}
Rxe3 {[%emt 0:00:39]} 37. Rxe3 {[%emt 0:00:00]} Bg6 {[%emt 0:00:28]} 38. Ng4 {
[%emt 0:00:28]} Re4 {[%emt 0:00:48]} 39. Kg1 {[%emt 0:01:59]} Rxe3 {[%emt 0:00:
00]} 40. Nxe3 {[%emt 0:00:01]} Kg7 {[%emt 0:00:27]} 41. Nc4 {[%emt 0:31:03]}
Kf6 {[%emt 0:30:22]} 42. Kf2 {[%emt 0:00:01]} Ke6 {[%emt 0:00:26]} 43. Ke3 {
[%emt 0:00:08]} Kd5 {[%emt 0:00:29]} 44. Nd2 {[%emt 0:00:08]} b5 {[%emt 0:00:
00]} 45. g4 {[%emt 0:00:52]} a5 {[%emt 0:00:26]} 46. h4 {[%emt 0:00:10]} c4 {
[%emt 0:00:32]} 47. h5 {[%emt 0:00:12]} Bc2 {[%emt 0:00:40]} 48. g5 {[%emt 0:
00:00]} b4 {[%emt 0:00:43]} 49. axb4 {[%emt 0:00:00]} axb4 {[%emt 0:00:00]} 50.
Nf3 {[%emt 0:00:00]} c5 {[%emt 0:00:00]} 51. Kd2 {[%emt 0:00:00]} Be4 {[%emt 0:
00:00]} 52. g6 {[%emt 0:00:00]} h6 {[%emt 0:00:00]} 53. Ke3 {[%emt 0:00:00]}
Bf5 {[%emt 0:00:00]} 54. Nd2 {[%emt 0:00:21]} Ke6 {[%emt 0:00:00]} 55. Nxc4 {
[%emt 0:00:56]} Kf6 {[%emt 0:00:00]} 56. Kf4 {[%emt 0:01:33]} Bd3 {[%emt 0:00:
00]} 57. Ne5 {[%emt 0:02:04]} Bb5 {[%emt 0:01:50]} 58. Ng4+ {[%emt 0:00:26]}
Kg7 {[%emt 0:00:28]} 59. Ke3 {[%emt 0:01:00]} Ba4 {[%emt 0:01:07]} 60. Nf2 {
[%emt 0:00:16]} c4 {[%emt 0:01:44]} 61. Kd4 {[%emt 0:00:48]} c3 {[%emt 0:00:19]
} 62. bxc3 {[%emt 0:00:10]} bxc3 {[%emt 0:00:07]} 63. Kxc3 {[%emt 0:00:14]} Be8
{[%emt 0:00:10]} 64. Ng4 {[%emt 0:01:14]} Bxg6 {[%emt 0:00:10]} 65. Nxh6 {
[%emt 0:00:09]} Kxh6 {[%emt 0:00:14]} 66. hxg6 {[%emt 0:00:03]} Kxg6 {[%emt 0:
00:00]} 1/2-1/2

[Event "44th Chess Olympiad Open 2022"]
[Site "Chennai"]
[Date "2022.08.02"]
[Round "5.47"]
[White "Chaves Sanchez, Gabriel A"]
[Black "Fellman, Mike"]
[Result "1/2-1/2"]
[WhiteElo "2125"]
[BlackElo "2107"]
[Annotator "NA RC"]
[PlyCount "150"]
[EventDate "2022.??.??"]
[TimeControl "60"]

1. e4 {[%emt 0:00:12]} c5 {[%emt 0:00:01]} 2. Nf3 {[%emt 0:00:09]} d6 {[%emt 0:
00:00]} 3. d4 {[%emt 0:00:11]} Nf6 {[%emt 0:00:06]} 4. Nc3 {[%emt 0:00:36]}
cxd4 {[%emt 0:00:06]} 5. Nxd4 {[%emt 0:00:09]} a6 {[%emt 0:00:05]} 6. f3 {
[%emt 0:00:37]} e5 {[%emt 0:00:14]} 7. Nb3 {[%emt 0:00:10]} Be6 {[%emt 0:00:08]
} 8. Be3 {[%emt 0:00:11]} Nbd7 {[%emt 0:01:09]} 9. g4 {[%emt 0:02:16]} Be7 {
[%emt 0:00:57]} 10. Qd2 {[%emt 0:00:13]} O-O {[%emt 0:03:05]} 11. O-O-O {
[%emt 0:01:04]} Rc8 {[%emt 0:03:15]} 12. g5 {[%emt 0:02:16]} Nh5 {[%emt 0:00:
00]} 13. Kb1 {[%emt 0:00:10]} Nb6 {[%emt 0:01:51]} 14. Rg1 {[%emt 0:03:44]} g6
{[%emt 0:01:07]} 15. h4 {[%emt 0:00:54]} Qc7 {[%emt 0:05:07]} 16. Qf2 {[%emt 0:
00:00]} Nc4 {[%emt 0:01:20]} 17. Bxc4 {[%emt 0:00:06]} Bxc4 {[%emt 0:05:23]}
18. Na4 {[%emt 0:00:24]} f5 {[%emt 0:06:59]} 19. gxf6 {[%emt 0:00:27]} Nxf6 {
[%emt 0:04:29]} 20. Nb6 {[%emt 0:00:20]} Rce8 {[%emt 0:05:09]} 21. Nxc4 {
[%emt 0:12:49]} Qxc4 {[%emt 0:00:09]} 22. Bh6 {[%emt 0:02:17]} Rf7 {[%emt 0:00:
00]} 23. Qe3 {[%emt 0:03:15]} Qe6 {[%emt 0:04:06]} 24. Rd3 {[%emt 0:28:31]} Nh5
{[%emt 0:04:31]} 25. Rg4 {[%emt 0:03:05]} Nf6 {[%emt 0:08:58]} 26. Rg1 {
[%emt 0:01:50]} Rc8 {[%emt 0:07:55]} 27. Bg5 {[%emt 0:05:22]} Kh8 {[%emt 0:00:
00]} 28. Rgd1 {[%emt 0:03:03]} Bf8 {[%emt 0:02:43]} 29. Nc1 {[%emt 0:11:13]}
Ng8 {[%emt 0:03:27]} 30. Qg1 {[%emt 0:01:15]} h6 {[%emt 0:01:22]} 31. Bd2 {
[%emt 0:00:37]} Kh7 {[%emt 0:01:27]} 32. Ne2 {[%emt 0:01:51]} Be7 {[%emt 0:00:
00]} 33. Bb4 {[%emt 0:01:36]} Rc6 {[%emt 0:03:01]} 34. Nc3 {[%emt 0:00:54]} Nf6
{[%emt 0:06:39]} 35. Nd5 {[%emt 0:00:28]} Ne8 {[%emt 0:00:07]} 36. Qg3 {
[%emt 0:02:08]} Bd8 {[%emt 0:00:44]} 37. a4 {[%emt 0:01:17]} Ng7 {[%emt 0:00:
00]} 38. Qe1 {[%emt 0:03:05]} Qh3 {[%emt 0:01:12]} 39. Nc3 {[%emt 0:03:59]}
Bxh4 {[%emt 0:00:50]} 40. Qe2 {[%emt 0:00:32]} Be7 {[%emt 0:02:15]} 41. f4 {
[%emt 0:32:31]} Qe6 {[%emt 0:02:53]} 42. fxe5 {[%emt 0:00:00]} dxe5 {[%emt 0:
00:00]} 43. Bxe7 {[%emt 0:00:00]} Qxe7 {[%emt 0:00:32]} 44. Nd5 {[%emt 0:00:00]
} Qf8 {[%emt 0:01:44]} 45. Qh2 {[%emt 0:00:00]} Re6 {[%emt 0:03:39]} 46. Qh3 {
[%emt 0:00:00]} Re8 {[%emt 0:01:52]} 47. Qe3 {[%emt 0:00:00]} Ne6 {[%emt 0:00:
00]} 48. Rc3 {[%emt 0:00:00]} Nd4 {[%emt 0:01:06]} 49. Ka2 {[%emt 0:00:00]} Rc8
{[%emt 0:06:33]} 50. Rh1 {[%emt 0:00:00]} Rxc3 {[%emt 0:00:23]} 51. Qxc3 {
[%emt 0:00:00]} Qd6 {[%emt 0:02:46]} 52. Qh3 {[%emt 0:00:00]} h5 {[%emt 0:00:
00]} 53. c3 {[%emt 0:00:00]} Ne6 {[%emt 0:00:40]} 54. Qd3 {[%emt 0:00:00]} Qc6
{[%emt 0:01:00]} 55. Ka3 {[%emt 0:00:00]} Nf4 {[%emt 0:00:29]} 56. Qd2 {
[%emt 0:00:00]} Nxd5 {[%emt 0:00:43]} 57. exd5 {[%emt 0:00:00]} Qd6+ {[%emt 0:
00:00]} 58. Ka2 {[%emt 0:00:00]} e4 {[%emt 0:00:58]} 59. Qd4 {[%emt 0:00:00]}
Rf5 {[%emt 0:00:34]} 60. Rd1 {[%emt 0:00:00]} Re5 {[%emt 0:01:10]} 61. c4 {
[%emt 0:00:00]} Re8 {[%emt 0:02:00]} 62. c5 {[%emt 0:00:00]} Qd7 {[%emt 0:00:
00]} 63. Rc1 {[%emt 0:00:14]} e3 {[%emt 0:00:42]} 64. Re1 {[%emt 0:01:58]} e2 {
[%emt 0:00:30]} 65. d6 {[%emt 0:00:54]} Qc6 {[%emt 0:01:11]} 66. b3 {[%emt 0:
00:00]} a5 {[%emt 0:02:14]} 67. Qd3 {[%emt 0:01:03]} Qe4 {[%emt 0:03:45]} 68.
d7 {[%emt 0:00:49]} Qxd3 {[%emt 0:00:06]} 69. dxe8=Q {[%emt 0:00:05]} Qc2+ {
[%emt 0:00:18]} 70. Ka1 {[%emt 0:00:39]} Qc3+ {[%emt 0:00:10]} 71. Ka2 {
[%emt 0:00:05]} Qxe1 {[%emt 0:00:34]} 72. Qe7+ {[%emt 0:00:04]} Kg8 {[%emt 0:
00:00]} 73. Qe8+ {[%emt 0:00:05]} Kg7 {[%emt 0:00:08]} 74. Qe7+ {[%emt 0:00:03]
} Kh6 {[%emt 0:00:30]} 75. Qe3+ {[%emt 0:00:03]} Kg7 {[%emt 0:00:16]} 1/2-1/2

[Event "44th Chess Olympiad Open 2022"]
[Site "Chennai"]
[Date "2022.08.02"]
[Round "5.47"]
[White "Rodriguez Santiago, Jaime"]
[Black "Cabezas Solano, David Alejandro"]
[Result "0-1"]
[WhiteElo "2067"]
[BlackElo "2196"]
[Annotator "NA RC"]
[PlyCount "70"]
[EventDate "2022.??.??"]
[TimeControl "60"]

1. c4 {[%emt 0:00:03]} e5 {[%emt 0:00:08]} 2. Nc3 {[%emt 0:00:10]} Nf6 {
[%emt 0:00:06]} 3. Nf3 {[%emt 0:00:44]} Nc6 {[%emt 0:00:23]} 4. e3 {[%emt 0:00:
00]} Bb4 {[%emt 0:02:23]} 5. Qc2 {[%emt 0:00:07]} O-O {[%emt 0:00:48]} 6. Nd5 {
[%emt 0:02:53]} Re8 {[%emt 0:05:48]} 7. Ng5 {[%emt 0:02:42]} g6 {[%emt 0:04:18]
} 8. h4 {[%emt 0:01:24]} Bf8 {[%emt 0:07:37]} 9. h5 {[%emt 0:08:49]} Nxd5 {
[%emt 0:03:31]} 10. hxg6 {[%emt 0:00:54]} Qxg5 {[%emt 0:04:03]} 11. gxf7+ {
[%emt 0:00:17]} Kxf7 {[%emt 0:00:02]} 12. Rxh7+ {[%emt 0:02:54]} Bg7 {[%emt 0:
00:00]} 13. cxd5 {[%emt 0:00:43]} Qg6 {[%emt 0:07:04]} 14. Qxg6+ {[%emt 0:00:
00]} Kxg6 {[%emt 0:00:04]} 15. Rxg7+ {[%emt 0:00:03]} Kxg7 {[%emt 0:00:02]} 16.
dxc6 {[%emt 0:00:06]} bxc6 {[%emt 0:00:41]} 17. b3 {[%emt 0:00:12]} d6 {
[%emt 0:06:51]} 18. Bb2 {[%emt 0:00:58]} Kg6 {[%emt 0:02:31]} 19. f3 {[%emt 0:
00:00]} a5 {[%emt 0:02:56]} 20. Rc1 {[%emt 0:03:58]} c5 {[%emt 0:01:58]} 21.
Kf2 {[%emt 0:01:47]} Ba6 {[%emt 0:03:35]} 22. Bxa6 {[%emt 0:08:02]} Rxa6 {
[%emt 0:00:02]} 23. Rc4 {[%emt 0:00:10]} a4 {[%emt 0:02:48]} 24. b4 {[%emt 0:
00:00]} Rb8 {[%emt 0:09:56]} 25. Ba3 {[%emt 0:15:18]} cxb4 {[%emt 0:00:18]} 26.
Bxb4 {[%emt 0:00:06]} a3 {[%emt 0:00:47]} 27. Bc3 {[%emt 0:03:30]} Rb2 {
[%emt 0:01:03]} 28. Ke2 {[%emt 0:00:15]} Rxa2 {[%emt 0:01:33]} 29. Kd1 {
[%emt 0:04:35]} Rb6 {[%emt 0:00:41]} 30. Kc1 {[%emt 0:00:22]} c5 {[%emt 0:00:
00]} 31. f4 {[%emt 0:01:41]} exf4 {[%emt 0:03:06]} 32. Rxf4 {[%emt 0:04:41]} d5
{[%emt 0:04:18]} 33. Ra4 {[%emt 0:04:51]} Rb5 {[%emt 0:01:58]} 34. g4 {[%emt 0:
00:00]} Kg5 {[%emt 0:01:30]} 35. Rf4 {[%emt 0:02:13]} d4 {[%emt 0:00:23]} 0-1

[Event "44th Chess Olympiad Open 2022"]
[Site "Chennai"]
[Date "2022.08.02"]
[Round "5.47"]
[White "Pinales Roussel, Gabriel"]
[Black "Chinchilla Miranda, Eugenio"]
[Result "0-1"]
[WhiteElo "1973"]
[BlackElo "2206"]
[Annotator "NA RC"]
[PlyCount "72"]
[EventDate "2022.??.??"]
[TimeControl "60"]

1. Nf3 {[%emt 0:00:03]} d5 {[%emt 0:00:17]} 2. g3 {[%emt 0:00:06]} c5 {[%emt 0:
00:00]} 3. Bg2 {[%emt 0:02:46]} Nf6 {[%emt 0:04:01]} 4. O-O {[%emt 0:00:22]} e6
{[%emt 0:01:45]} 5. c4 {[%emt 0:03:29]} d4 {[%emt 0:00:48]} 6. e3 {[%emt 0:00:
00]} Nc6 {[%emt 0:00:28]} 7. exd4 {[%emt 0:00:05]} cxd4 {[%emt 0:00:09]} 8. d3
{[%emt 0:01:18]} Bd6 {[%emt 0:03:44]} 9. Bg5 {[%emt 0:11:13]} h6 {[%emt 0:00:
00]} 10. Bxf6 {[%emt 0:00:07]} Qxf6 {[%emt 0:00:07]} 11. Nbd2 {[%emt 0:02:07]}
Qe7 {[%emt 0:00:14]} 12. Re1 {[%emt 0:01:10]} O-O {[%emt 0:01:02]} 13. Nb3 {
[%emt 0:06:14]} Qf6 {[%emt 0:09:28]} 14. c5 {[%emt 0:02:39]} Bc7 {[%emt 0:00:
00]} 15. Nfd2 {[%emt 0:03:01]} e5 {[%emt 0:05:21]} 16. Ne4 {[%emt 0:06:53]} Qg6
{[%emt 0:02:13]} 17. Nbd2 {[%emt 0:00:55]} f5 {[%emt 0:15:45]} 18. Nd6 {
[%emt 0:00:09]} Bxd6 {[%emt 0:00:37]} 19. cxd6 {[%emt 0:00:05]} Qxd6 {[%emt 0:
00:00]} 20. Nc4 {[%emt 0:00:34]} Qf6 {[%emt 0:01:05]} 21. Bxc6 {[%emt 0:06:08]}
bxc6 {[%emt 0:00:15]} 22. Nxe5 {[%emt 0:00:07]} f4 {[%emt 0:00:27]} 23. Qf3 {
[%emt 0:04:25]} fxg3 {[%emt 0:05:01]} 24. Qxf6 {[%emt 0:03:57]} gxh2+ {[%emt 0:
00:00]} 25. Kxh2 {[%emt 0:00:07]} Rxf6 {[%emt 0:00:12]} 26. Kg3 {[%emt 0:00:09]
} Bf5 {[%emt 0:06:15]} 27. Rec1 {[%emt 0:03:30]} Re8 {[%emt 0:06:18]} 28. Rc5 {
[%emt 0:00:48]} Rfe6 {[%emt 0:06:54]} 29. f4 {[%emt 0:06:25]} Bxd3 {[%emt 0:00:
00]} 30. Rd1 {[%emt 0:01:46]} Be4 {[%emt 0:00:26]} 31. Rxd4 {[%emt 0:00:32]}
Bd5 {[%emt 0:00:12]} 32. Rc3 {[%emt 0:08:39]} g5 {[%emt 0:03:01]} 33. Nc4 {
[%emt 0:00:45]} Re4 {[%emt 0:00:49]} 34. Rxe4 {[%emt 0:02:06]} Rxe4 {[%emt 0:
00:00]} 35. Na5 {[%emt 0:00:09]} gxf4+ {[%emt 0:01:48]} 36. Kg4 {[%emt 0:02:31]
} f3+ {[%emt 0:00:31]} 0-1